bitfinex/quotes_BTCUSD_20250813
["timestamp","ask_amount","ask_price","bid_price","bid_amount"]
[1755122529666,0.00536783,122730.0,122720.0,0.60339153]
[1755122529868,0.00221783,122730.0,122720.0,2.28098153]
[1755122530074,0.00014783,122730.0,122720.0,2.21678993]
[1755122530344,0.00014783,122730.0,122720.0,2.51713453]
[1755122530544,0.00014783,122730.0,122720.0,2.52032453]
[1755122531626,0.00014783,122730.0,122720.0,2.81720453]
[1755122532045,0.0002,122750.0,122740.0,0.72930562]
[1755122532273,0.00227,122750.0,122740.0,1.74470187]
[1755122532498,0.0002,122750.0,122740.0,1.7720387]
[1755122532729,0.0002,122750.0,122740.0,2.49653512]
[1755122533375,0.08826522,122770.0,122760.0,0.01629195]
[1755122533608,0.08826522,122770.0,122760.0,2.19119022]
[1755122533609,0.08841303,122770.0,122760.0,2.19119022]
[1755122533819,0.09048303,122770.0,122760.0,0.49547325]
[1755122534059,0.09363303,122770.0,122760.0,0.08272325]
[1755122534263,0.09363303,122770.0,122760.0,0.58942427]
[1755122534264,0.08841303,122770.0,122760.0,0.58942427]
[1755122534502,0.09048303,122770.0,122760.0,1.29381862]
[1755122534743,0.09363303,122770.0,122760.0,1.28097022]
[1755122534958,0.09363303,122770.0,122760.0,1.03054527]
[1755122535165,0.09363303,122770.0,122760.0,0.54012325]
[1755122535373,0.09563303,122770.0,122760.0,0.91313427]
[1755122535775,0.09463303,122770.0,122760.0,0.91313427]
[1755122536026,0.09663303,122770.0,122760.0,0.91313427]
[1755122537163,0.09663303,122770.0,122760.0,1.12157427]
[1755122537374,0.09141303,122770.0,122760.0,2.14045622]
[1755122537582,0.09141303,122770.0,122760.0,2.16605162]
[1755122538421,0.09041303,122770.0,122760.0,2.16605162]
[1755122539127,0.09041303,122770.0,122760.0,2.16388162]
[1755122539293,0.08841303,122770.0,122760.0,2.03220162]
[1755122539492,0.08841303,122770.0,122760.0,2.16384162]
[1755122539720,0.09041303,122770.0,122760.0,2.16384162]
[1755122539918,0.09041303,122770.0,122760.0,2.00660622]
[1755122540130,0.09356303,122770.0,122760.0,0.40856325]
[1755122540338,0.09256303,122770.0,122760.0,0.40856325]
[1755122540532,0.09256303,122770.0,122760.0,0.54016325]
[1755122540739,0.09256303,122770.0,122760.0,0.88016325]
[1755122540947,0.09256303,122770.0,122760.0,0.40856325]
[1755122541321,0.11656303,122770.0,122760.0,0.40856325]
[1755122541526,0.11656303,122770.0,122760.0,0.7542]
[1755122541527,0.15763465,122770.0,122760.0,0.7542]
[1755122541763,0.15863465,122770.0,122760.0,0.6226]
[1755122541975,0.57186649,122770.0,122760.0,0.6226]
[1755122542192,0.56577567,122770.0,122760.0,0.75416]
[1755122542401,0.59018867,122770.0,122760.0,0.3268]
[1755122542615,0.59218867,122770.0,122760.0,0.3268]
[1755122542833,0.59118867,122770.0,122760.0,0.3268]
[1755122543034,0.58918867,122770.0,122760.0,0.3268]
[1755122543248,0.59718867,122770.0,122710.0,0.37301102]
[1755122543464,0.02815,122760.0,122730.0,0.37301102]
[1755122543674,0.025,122750.0,122740.0,0.21424325]
[1755122543892,0.04322162,122750.0,122740.0,0.55424325]
[1755122544121,0.01822162,122750.0,122740.0,1.22698927]
[1755122544344,0.00315,122760.0,122750.0,0.34]
[1755122544552,0.01511628,122760.0,122750.0,0.79573427]
[1755122544766,0.001,122760.0,122750.0,0.79573427]
[1755122545158,0.001,122760.0,122750.0,1.74986654]
[1755122545388,0.001,122760.0,122750.0,2.12287756]
[1755122545606,0.001,122760.0,122750.0,1.75293654]
[1755122545821,0.001,122760.0,122750.0,1.37992552]
[1755122546046,0.00415,122760.0,122750.0,0.21440325]
[1755122546171,0.02227199,122760.0,122750.0,0.21440325]
[1755122546388,0.01927199,122760.0,122750.0,0.08272325]
[1755122546785,0.01827199,122760.0,122750.0,0.13168]
[1755122546996,0.04427199,122760.0,122740.0,0.34]
[1755122547213,0.02815,122750.0,122700.0,0.02751981]
[1755122547424,0.00315,122740.0,122710.0,1.00666827]
[1755122547641,0.01512199,122740.0,122730.0,0.34]
[1755122547822,0.01512199,122740.0,122730.0,0.55436325]
[1755122548247,0.01827199,122740.0,122730.0,0.55436325]
[1755122549069,0.01927199,122740.0,122730.0,0.55436325]
[1755122549302,0.01827199,122740.0,122730.0,0.55436325]
[1755122549728,0.02027199,122740.0,122730.0,0.55436325]
[1755122549974,0.02027199,122740.0,122730.0,0.42272325]
[1755122550190,0.025,122730.0,122710.0,0.02600696]
[1755122550398,0.04012199,122730.0,122720.0,0.21420325]
[1755122550615,0.04012199,122730.0,122720.0,0.55420325]
[1755122551046,0.04327199,122730.0,122720.0,0.55420325]
[1755122551263,0.04327199,122730.0,122720.0,0.55416325]
[1755122551474,0.04327199,122730.0,122720.0,0.71948325]
[1755122551707,0.04327199,122730.0,122720.0,0.29676]
[1755122551708,0.06927199,122730.0,122720.0,0.29676]
[1755122551918,0.06927199,122730.0,122720.0,0.4282]
[1755122552134,0.06827199,122730.0,122720.0,0.32668]
[1755122552348,0.06927199,122730.0,122720.0,0.32668]
[1755122552576,0.06927199,122730.0,122720.0,0.3266]
[1755122553049,0.05,122710.0,122690.0,0.02495001]
[1755122553262,0.025,122700.0,122690.0,0.10782109]
[1755122553464,0.01827199,122700.0,122690.0,0.55419108]
[1755122553694,0.04327199,122700.0,122690.0,0.55419108]
[1755122554342,0.01827199,122700.0,122690.0,0.42287108]
[1755122554554,0.01827199,122700.0,122690.0,0.55415108]
[1755122554767,0.04327199,122700.0,122690.0,0.21411108]
[1755122554977,0.04327199,122700.0,122690.0,0.47134783]
[1755122555411,0.06927199,122700.0,122690.0,0.47134783]
[1755122555827,0.06927199,122700.0,122690.0,0.34014783]
[1755122556026,0.06927199,122700.0,122690.0,0.47126783]
[1755122556442,0.06927199,122700.0,122690.0,0.34014783]
[1755122556665,0.06927199,122700.0,122690.0,0.00014783]
[1755122556920,0.07027199,122700.0,122690.0,0.00014783]
[1755122557139,0.07027199,122700.0,122690.0,0.13122783]
[1755122557561,0.06927199,122700.0,122690.0,0.13122783]
[1755122557793,0.06827199,122700.0,122690.0,0.00014783]
[1755122558058,0.06927199,122700.0,122690.0,0.00014783]
[1755122558278,0.07127199,122700.0,122690.0,0.00014783]
[1755122558510,0.07027199,122700.0,122690.0,0.13122783]
[1755122558997,0.15199524,122700.0,122690.0,0.13122783]
[1755122559218,0.15199524,122700.0,122690.0,0.00014783]
[1755122559454,0.15499524,122700.0,122690.0,0.13114783]
[1755122559700,0.15199524,122700.0,122690.0,0.13114783]
[1755122560153,0.15099524,122700.0,122690.0,0.13114783]
[1755122560370,0.15608796,122700.0,122690.0,0.13114783]
[1755122560584,0.15708796,122700.0,122690.0,0.13130783]
[1755122560857,0.15708796,122700.0,122690.0,0.00014783]
[1755122561108,0.15708796,122700.0,122690.0,0.13126783]
[1755122561538,0.15708796,122700.0,122690.0,0.42814783]
[1755122561776,0.16008796,122700.0,122690.0,0.42814783]
[1755122563045,0.16008796,122700.0,122690.0,0.10170783]
[1755122563320,0.16008796,122700.0,122690.0,0.42806783]
[1755122563527,0.16008796,122700.0,122690.0,0.32650783]
[1755122563744,0.16002476,122700.0,122690.0,0.32650783]
[1755122563947,0.18445376,122700.0,122690.0,0.32650783]
[1755122564161,0.17936104,122700.0,122690.0,0.32650783]
[1755122564784,0.18135104,122700.0,122690.0,0.32650783]
[1755122566523,0.55436206,122700.0,122690.0,0.00014783]
[1755122566730,0.55435853,122700.0,122690.0,0.13094783]
[1755122566929,0.89435853,122700.0,122690.0,0.13094783]
[1755122567361,0.52034751,122700.0,122690.0,0.13094783]
[1755122567572,0.89335853,122700.0,122690.0,0.13094783]
[1755122567779,0.89735853,122700.0,122690.0,0.13094783]
[1755122568112,0.89335853,122700.0,122690.0,0.13094783]
[1755122568334,0.89935853,122700.0,122690.0,0.13094783]
[1755122568581,0.89035853,122700.0,122690.0,0.13094783]
[1755122569006,0.89735853,122700.0,122690.0,0.13194783]
[1755122569259,0.89735853,122700.0,122690.0,0.00114783]
[1755122569465,0.90235853,122700.0,122690.0,0.00114783]
[1755122569665,0.90235853,122700.0,122690.0,0.13182783]
[1755122570289,0.90236621,122700.0,122690.0,0.00114783]
[1755122570496,0.90236621,122700.0,122690.0,0.13174783]
[1755122571128,0.90236621,122700.0,122690.0,0.13170783]
[1755122571343,0.98821621,122700.0,122690.0,0.00114783]
[1755122571573,0.90236621,122700.0,122690.0,0.32706783]
[1755122572919,1.30037723,122700.0,122690.0,0.32706783]
[1755122573153,0.1,122690.0,122680.0,0.10156]
[1755122573372,0.1,122690.0,122680.0,0.4274]
[1755122573373,0.20287891,122690.0,122680.0,0.4274]
[1755122573578,0.17792619,122690.0,122680.0,0.4274]
[1755122573788,0.55093721,122690.0,122680.0,0.4274]
[1755122574395,0.55093721,122690.0,122680.0,0.29692]
[1755122574655,0.57593721,122690.0,122680.0,0.10156]
[1755122574868,0.57593721,122690.0,122680.0,0.42748]
[1755122575508,0.49692619,122690.0,122680.0,0.42848]
[1755122575725,0.86993721,122690.0,122680.0,0.42848]
[1755122575937,0.87393721,122690.0,122680.0,0.4284]
[1755122576321,0.87393721,122690.0,122680.0,0.42844]
[1755122576514,0.50092619,122690.0,122680.0,0.42844]
[1755122576766,0.87393721,122690.0,122680.0,0.42844]
[1755122579330,0.87393721,122690.0,122680.0,0.29796]
[1755122579540,0.87393721,122690.0,122680.0,0.42832]
[1755122580598,0.89893721,122690.0,122680.0,0.42832]
[1755122581062,0.47277619,122690.0,122680.0,0.42832]
[1755122581271,0.49777619,122690.0,122680.0,0.43048]
[1755122581492,0.44777619,122690.0,122680.0,0.43048]
[1755122581704,0.48594325,122690.0,122680.0,0.42832]
[1755122581922,0.85895427,122690.0,122680.0,0.42844]
[1755122582136,0.89908878,122690.0,122680.0,0.79796]
[1755122582378,0.90895427,122690.0,122680.0,0.92848]
[1755122583012,0.53594325,122690.0,122680.0,0.92848]
[1755122583220,0.90895427,122690.0,122680.0,0.92848]
[1755122583925,0.92410312,122690.0,122680.0,0.49122873]
[1755122584135,0.92410312,122690.0,122680.0,0.81718873]
[1755122584351,1.00658755,122690.0,122680.0,0.81718873]
[1755122584567,0.92410312,122690.0,122680.0,0.81718873]
[1755122585444,0.90895427,122690.0,122680.0,0.81718873]
[1755122586705,0.90395427,122690.0,122680.0,0.68662873]
[1755122586909,0.90395427,122690.0,122680.0,0.81706873]
[1755122587129,1.14945117,122690.0,122680.0,0.68662873]
[1755122587339,1.16691201,122690.0,122680.0,0.80894202]
[1755122587743,1.16291201,122690.0,122680.0,0.80894202]
[1755122587922,1.18457343,122690.0,122680.0,0.80894202]
[1755122588127,1.18457343,122690.0,122680.0,0.80890202]
[1755122588330,1.03272857,122690.0,122680.0,0.48314202]
[1755122588574,1.18057343,122690.0,122680.0,0.80894202]
[1755122588741,1.16291201,122690.0,122680.0,0.80894202]
[1755122589245,0.55957493,122690.0,122680.0,0.80894202]
[1755122589616,1.09558991,122690.0,122680.0,0.80894202]
[1755122590057,1.49360093,122690.0,122680.0,0.67858202]
[1755122590267,1.57116248,122690.0,122680.0,0.79106484]
[1755122590474,1.17488447,122690.0,122680.0,0.79106484]
[1755122590688,1.35307199,122690.0,122680.0,0.79106484]
[1755122590894,1.72608301,122690.0,122680.0,0.46522484]
[1755122591104,1.34988447,122690.0,122680.0,0.79106484]
[1755122591327,0.91505952,122690.0,122680.0,0.79106484]
[1755122591545,1.35307199,122690.0,122680.0,0.79106484]
[1755122591728,1.70108301,122690.0,122680.0,0.66066484]
[1755122591963,1.72608301,122690.0,122680.0,0.59595305]
[1755122592201,1.35307199,122690.0,122680.0,0.27011305]
[1755122592415,0.88257509,122690.0,122680.0,0.59005691]
[1755122592644,1.27058756,122690.0,122680.0,0.59005691]
[1755122593070,0.65956407,122690.0,122680.0,0.59005691]
[1755122593287,0.88257509,122690.0,122680.0,0.59005691]
[1755122593514,0.56990511,122690.0,122680.0,0.59005691]
[1755122593961,0.63369152,122690.0,122680.0,0.59005691]
[1755122594178,0.91313511,122690.0,122680.0,0.59005691]
[1755122594394,0.09689409,122690.0,122680.0,0.59300691]
[1755122594612,0.17698681,122690.0,122680.0,0.59300691]
[1755122594836,0.54490511,122690.0,122680.0,0.59037691]
[1755122595072,0.85990511,122690.0,122680.0,0.59037691]
[1755122595286,0.90990511,122690.0,122680.0,0.59037691]
[1755122595494,0.53689409,122690.0,122680.0,0.59037691]
[1755122595699,0.53689409,122690.0,122680.0,0.59332691]
[1755122595700,0.85990511,122690.0,122680.0,0.59332691]
[1755122595874,0.48689409,122690.0,122680.0,0.59332691]
[1755122596093,0.88490511,122690.0,122680.0,0.59332691]
[1755122596710,0.88490511,122690.0,122680.0,0.56509691]
[1755122597101,0.90990511,122690.0,122680.0,0.56509691]
[1755122597302,0.91313511,122690.0,122680.0,0.43425691]
[1755122597510,0.93757611,122690.0,122680.0,0.56549691]
[1755122597742,0.91257611,122690.0,122680.0,0.43425691]
[1755122597899,0.93757611,122690.0,122680.0,0.56553691]
[1755122598768,1.02006054,122690.0,122680.0,0.56553691]
[1755122599397,1.02006054,122690.0,122680.0,0.43425691]
[1755122599635,1.02006054,122690.0,122680.0,0.56553691]
[1755122600060,1.77293174,122690.0,122680.0,0.43425691]
[1755122600265,1.79040367,122690.0,122680.0,0.56545691]
[1755122600465,1.41739265,122690.0,122680.0,0.56545691]
[1755122600669,1.41739265,122690.0,122680.0,0.56541691]
[1755122600863,1.41939265,122690.0,122680.0,0.56641691]
[1755122601069,1.83906509,122690.0,122680.0,0.43525691]
[1755122601268,1.92491509,122690.0,122680.0,0.55664222]
[1755122601479,1.92491509,122690.0,122680.0,0.5484999]
[1755122601676,1.92507864,122690.0,122680.0,0.5212969]
[1755122601884,1.93239693,122690.0,122680.0,0.51315458]
[1755122602241,1.93839693,122690.0,122680.0,0.50501226]
[1755122602453,1.95274189,122690.0,122680.0,0.50501226]
[1755122602685,1.94074189,122690.0,122680.0,0.49586994]
[1755122603088,1.88989418,122690.0,122680.0,0.48972762]
[1755122603475,1.88189418,122690.0,122680.0,0.4805853]
[1755122603697,1.79940975,122690.0,122680.0,0.4805853]
[1755122603959,1.80840975,122690.0,122680.0,0.47344298]
[1755122604193,0.39,122620.0,122610.0,0.08275441]
[1755122604432,0.48789409,122620.0,122610.0,0.37987441]
[1755122605087,0.51234309,122620.0,122610.0,0.37987441]
[1755122605299,0.51234309,122620.0,122610.0,0.46351]
[1755122605518,0.51239227,122620.0,122610.0,0.46351]
[1755122605728,0.51339227,122620.0,122610.0,0.46351]
[1755122605934,0.51336113,122620.0,122610.0,0.46351]
[1755122606144,0.51436113,122620.0,122610.0,0.46678]
[1755122607040,0.88737215,122620.0,122610.0,0.46678]
[1755122607257,0.88737215,122620.0,122610.0,0.46892]
[1755122608965,0.88737537,122620.0,122610.0,0.46892]
[1755122609200,0.88737537,122620.0,122610.0,0.32656]
[1755122609420,1.0069705,122620.0,122610.0,0.19552]
[1755122609641,0.94031537,122620.0,122610.0,0.32656]
[1755122610205,0.93637537,122620.0,122610.0,0.32656]
[1755122610420,0.93831537,122620.0,122610.0,0.32648]
[1755122610593,0.94231537,122620.0,122610.0,0.32748]
[1755122610826,0.94731537,122620.0,122610.0,0.32748]
[1755122611056,0.94731537,122620.0,122610.0,0.19652]
[1755122611282,0.94731537,122620.0,122610.0,0.32744]
[1755122611708,0.52430435,122620.0,122610.0,0.32744]
[1755122611913,0.94731537,122620.0,122610.0,0.32744]
[1755122612127,0.94331537,122620.0,122610.0,0.32744]
[1755122612367,0.05,122580.0,122570.0,0.02412]
[1755122612576,0.48786617,122580.0,122570.0,0.32132]
[1755122612812,0.48786617,122580.0,122570.0,0.21964]
[1755122613028,0.51232117,122580.0,122570.0,0.21964]
[1755122613429,0.51232117,122580.0,122570.0,0.35068]
[1755122613638,0.51232117,122580.0,122570.0,0.35117315]
[1755122613842,0.51332117,122580.0,122570.0,0.35217315]
[1755122614736,0.48886617,122580.0,122570.0,0.35238315]
[1755122616661,0.48886617,122580.0,122570.0,0.15678315]
[1755122618384,0.48886617,122580.0,122570.0,0.15665315]
[1755122618587,0.48886617,122580.0,122570.0,0.02569315]
[1755122618797,0.48886617,122580.0,122570.0,0.15665315]
[1755122619228,0.48886617,122580.0,122570.0,0.15678315]
[1755122619723,0.14886617,122580.0,122570.0,0.15678315]
[1755122620493,0.13372325,122580.0,122570.0,0.15678315]
[1755122620700,0.14885803,122580.0,122570.0,0.15654315]
[1755122621101,0.12385803,122580.0,122570.0,0.15654315]
[1755122621395,0.14885803,122580.0,122570.0,0.15654315]
[1755122621662,0.14885803,122580.0,122570.0,0.45378315]
[1755122622042,0.06613478,122580.0,122570.0,0.82679417]
[1755122622242,0.01613478,122580.0,122570.0,0.85428902]
[1755122622474,0.025,122590.0,122570.0,0.93701227]
[1755122622645,0.04987,122590.0,122580.0,0.48872427]
[1755122623264,0.04987,122590.0,122580.0,0.61948427]
[1755122624709,0.05087,122590.0,122580.0,0.64997912]
[1755122624915,0.001,122590.0,122580.0,0.66629499]
[1755122625087,0.001,122590.0,122580.0,1.78618601]
[1755122625289,0.001,122590.0,122580.0,2.12618601]
[1755122625528,0.001,122590.0,122580.0,0.96248427]
[1755122625974,0.02487,122600.0,122590.0,0.34]
[1755122626178,0.02487,122600.0,122590.0,0.82872427]
[1755122626613,0.00509272,122640.0,122590.0,1.70371514]
[1755122626841,0.02487,122600.0,122590.0,0.42272325]
[1755122627040,0.04987,122610.0,122600.0,0.02749485]
[1755122627359,0.02487,122600.0,122590.0,0.55560325]
[1755122627489,0.02587,122600.0,122590.0,0.55560325]
[1755122627920,0.02587,122600.0,122590.0,0.58859325]
[1755122628327,0.02587,122600.0,122590.0,0.96160427]
[1755122629407,0.001,122600.0,122590.0,1.62681614]
[1755122629616,0.001,122600.0,122590.0,1.66706274]
[1755122629820,0.001,122600.0,122590.0,1.6507482]
[1755122630249,0.02487,122610.0,122590.0,1.62125335]
[1755122630464,0.02487,122610.0,122600.0,1.20173529]
[1755122630875,0.04987,122620.0,122610.0,0.34]
[1755122631046,0.04987,122620.0,122610.0,0.92649427]
[1755122631276,0.04987,122620.0,122610.0,0.95948427]
[1755122631460,0.04987,122620.0,122610.0,1.25664427]
[1755122631992,0.025,122640.0,122610.0,1.25664427]
[1755122632197,0.09184771,122650.0,122630.0,0.37301102]
[1755122632405,0.11671771,122650.0,122640.0,0.50369102]
[1755122632611,0.09184771,122650.0,122640.0,0.50369102]
[1755122632810,0.11671771,122650.0,122640.0,0.50369102]
[1755122633468,0.09184771,122650.0,122640.0,0.50369102]
[1755122633696,0.11871771,122650.0,122640.0,0.50369102]
[1755122633919,0.12171771,122650.0,122640.0,0.50469102]
[1755122634044,0.09684771,122650.0,122640.0,0.50469102]
[1755122634262,0.12171771,122650.0,122640.0,0.50469102]
[1755122634693,0.05487,122650.0,122640.0,0.50469102]
[1755122635100,0.03,122650.0,122640.0,0.50469102]
[1755122635837,0.05287,122650.0,122640.0,0.50469102]
[1755122636264,0.02887,122650.0,122640.0,0.51265385]
[1755122636671,0.05087,122650.0,122640.0,0.51165385]
[1755122636928,0.026,122650.0,122640.0,0.51165385]
[1755122637138,0.005,122650.0,122640.0,0.5401487]
[1755122637341,0.02987,122650.0,122640.0,0.5401487]
[1755122637555,0.02987,122650.0,122640.0,0.62287195]
[1755122637793,0.005,122650.0,122640.0,0.62287195]
[1755122638002,0.005,122650.0,122640.0,0.65950195]
[1755122638395,0.02987,122650.0,122640.0,0.99950195]
[1755122639756,0.005,122650.0,122640.0,0.99950195]
[1755122639965,0.02987,122650.0,122640.0,0.9720071]
[1755122640372,0.005,122650.0,122640.0,0.9720071]
[1755122640793,0.005,122650.0,122640.0,1.7773381]
[1755122640980,0.02987,122650.0,122640.0,0.9720071]
[1755122641387,0.02987,122650.0,122640.0,1.0736471]
[1755122641667,0.02987,122650.0,122640.0,1.2690871]
[1755122641946,0.005,122650.0,122640.0,2.18361197]
[1755122642239,0.005,122650.0,122640.0,2.08586986]
[1755122642622,0.004,122650.0,122640.0,2.08586986]
[1755122643356,0.02487,122670.0,122640.0,2.0930238]
[1755122643558,0.02487,122670.0,122660.0,0.34]
[1755122643785,0.02487,122670.0,122660.0,0.79573427]
[1755122644772,0.02787,122670.0,122660.0,0.79622742]
[1755122645550,0.02787,122670.0,122660.0,0.95084845]
[1755122648271,0.003,122670.0,122660.0,0.95084845]
[1755122648468,0.02787,122670.0,122660.0,0.95084845]
[1755122648684,0.003,122670.0,122660.0,0.95084845]
[1755122648994,0.02787,122670.0,122660.0,0.95084845]
[1755122649552,0.02787,122670.0,122660.0,0.82076845]
[1755122649720,0.02787,122670.0,122660.0,0.95060845]
[1755122650128,0.02487,122670.0,122660.0,0.95060845]
[1755122650334,0.02687,122670.0,122660.0,0.95060845]
[1755122650758,0.02487,122670.0,122660.0,0.95060845]
[1755122650930,0.02787,122670.0,122660.0,0.95160845]
[1755122651554,0.02787,122670.0,122660.0,1.24860845]
[1755122651759,0.02787,122670.0,122660.0,0.66303418]
[1755122651760,0.05805,122670.0,122660.0,0.66303418]
[1755122651979,0.05805,122670.0,122660.0,1.1647652]
[1755122652501,0.03318,122670.0,122660.0,1.1647652]
[1755122652941,0.05805,122670.0,122660.0,1.1647652]
[1755122653689,0.0732117,122670.0,122660.0,0.79175418]
[1755122653892,0.0732117,122670.0,122660.0,0.19589315]
[1755122654086,0.0732117,122670.0,122660.0,0.69858417]
[1755122654402,0.0732117,122670.0,122660.0,0.13017315]
[1755122654616,0.01931759,122670.0,122660.0,0.51077146]
[1755122654817,0.00198,122670.0,122660.0,0.51077146]
[1755122655018,0.00198,122670.0,122660.0,0.13776044]
[1755122655182,0.00198,122670.0,122660.0,0.51077146]
[1755122655391,0.00198,122670.0,122660.0,0.51081146]
[1755122656555,0.00198,122670.0,122660.0,0.50322417]
[1755122656742,0.00514,122670.0,122660.0,0.37350417]
[1755122656962,0.00514,122670.0,122660.0,0.50318417]
[1755122657597,0.00514,122670.0,122660.0,0.00049315]
[1755122657755,0.00514,122670.0,122660.0,0.13017315]
[1755122659006,0.00514,122670.0,122660.0,0.13009315]
[1755122661243,0.00514,122670.0,122660.0,0.50310417]
[1755122661446,0.00514,122670.0,122660.0,0.42709315]
[1755122665565,0.08786325,122670.0,122660.0,0.32653315]
[1755122665806,0.08786325,122670.0,122660.0,0.13113315]
[1755122666726,0.10307388,122670.0,122660.0,0.13113315]
[1755122667430,0.10507388,122670.0,122660.0,0.13113315]
[1755122667645,0.10707388,122670.0,122660.0,0.13113315]
[1755122668843,0.10391388,122670.0,122660.0,0.50414417]
[1755122669046,0.02119063,122670.0,122660.0,0.50612417]
[1755122669253,0.01921063,122670.0,122660.0,0.50612417]
[1755122669471,0.01921063,122670.0,122660.0,0.50929417]
[1755122669888,0.01921063,122670.0,122660.0,0.13628315]
[1755122670097,0.02116063,122670.0,122660.0,0.13311315]
[1755122670523,0.02441063,122670.0,122660.0,0.13113315]
[1755122671430,0.02441063,122670.0,122660.0,0.13327315]
[1755122671640,0.02441063,122670.0,122660.0,0.43027315]
[1755122672618,0.02441063,122670.0,122660.0,0.42829315]
[1755122673618,0.10713388,122670.0,122660.0,0.42829315]
[1755122674017,0.10713388,122670.0,122660.0,0.19589315]
[1755122674226,0.4801449,122670.0,122660.0,0.32717315]
[1755122674427,0.8201449,122670.0,122660.0,0.32717315]
[1755122675584,0.8695849,122670.0,122660.0,0.32717315]
[1755122675978,0.49457388,122670.0,122660.0,0.32717315]
[1755122676203,0.47257388,122670.0,122660.0,0.32717315]
[1755122676937,0.47057388,122670.0,122660.0,0.32717315]
[1755122677367,0.47457388,122670.0,122660.0,0.32817315]
[1755122677569,0.45013388,122670.0,122660.0,0.32817315]
[1755122679578,0.4501178,122670.0,122660.0,0.13277315]
[1755122679780,0.43492325,122670.0,122660.0,0.13475315]
[1755122679965,0.43167325,122670.0,122660.0,0.13475315]
[1755122680614,0.08972325,122670.0,122660.0,0.50776417]
[1755122680822,0.08972325,122670.0,122660.0,0.51093417]
[1755122681023,0.007,122670.0,122660.0,0.51093417]
[1755122681228,0.007,122670.0,122660.0,0.57510902]
[1755122681399,0.007,122670.0,122660.0,0.64921417]
[1755122681599,0.007,122670.0,122660.0,0.84465417]
[1755122681868,0.007,122670.0,122660.0,0.47164315]
[1755122682037,0.003,122670.0,122660.0,0.47064315]
[1755122682298,0.003,122670.0,122660.0,0.84365417]
[1755122682502,0.005,122670.0,122660.0,0.84365417]
[1755122682872,0.002,122670.0,122660.0,0.84365417]
[1755122683075,0.003,122670.0,122660.0,0.84365417]
[1755122683667,0.003,122670.0,122660.0,0.74205417]
[1755122683870,0.002,122670.0,122660.0,0.74205417]
[1755122684253,0.003,122670.0,122660.0,0.57410902]
[1755122684641,0.001,122670.0,122660.0,0.57410902]
[1755122684996,0.002,122670.0,122660.0,0.57410902]
[1755122687815,0.002,122670.0,122660.0,0.54661417]
[1755122688317,0.002,122670.0,122660.0,0.56581417]
[1755122689404,0.002,122670.0,122660.0,0.19280315]
[1755122689556,0.002,122670.0,122660.0,0.52913417]
[1755122691447,0.002,122670.0,122660.0,0.82613417]
[1755122695025,0.002,122670.0,122660.0,0.72453417]
[1755122696072,0.002,122670.0,122660.0,0.62015227]
[1755122696264,0.002,122670.0,122660.0,1.0310975]
[1755122696476,0.002,122670.0,122660.0,2.01830942]
[1755122696696,0.002,122670.0,122660.0,2.03461465]
[1755122696901,0.001,122670.0,122660.0,2.0621095]
[1755122698199,0.06684771,122710.0,122670.0,0.34]
[1755122698404,0.07005771,122710.0,122700.0,0.37301102]
[1755122698619,0.07005771,122710.0,122700.0,0.50429102]
[1755122698620,0.07208771,122710.0,122700.0,0.50429102]
[1755122700121,0.07508771,122710.0,122700.0,0.50529102]
[1755122700322,0.07187771,122710.0,122700.0,0.50727102]
[1755122700822,0.00503,122710.0,122700.0,0.50727102]
[1755122701441,0.00503,122710.0,122700.0,0.80427102]
[1755122701655,0.00703,122710.0,122700.0,0.80427102]
[1755122702142,0.01024,122710.0,122700.0,0.80229102]
[1755122703103,0.00703,122710.0,122700.0,0.81228205]
[1755122703553,0.00703,122710.0,122700.0,0.81030205]
[1755122703779,0.01024,122710.0,122700.0,0.81030205]
[1755122704618,0.01024,122710.0,122700.0,0.70870205]
[1755122705447,0.00724,122710.0,122700.0,0.70770205]
[1755122706241,0.00824,122710.0,122700.0,0.70770205]
[1755122706436,0.00824,122710.0,122700.0,0.37602205]
[1755122706641,0.00824,122710.0,122700.0,0.38495945]
[1755122707047,0.00824,122710.0,122700.0,0.38693945]
[1755122707712,0.00503,122710.0,122700.0,0.51777945]
[1755122709293,0.003,122710.0,122700.0,0.51777945]
[1755122709511,0.003,122710.0,122700.0,0.52071945]
[1755122710128,0.003,122710.0,122700.0,0.51777945]
[1755122710328,0.00503,122710.0,122700.0,0.51777945]
[1755122710541,0.00403,122710.0,122700.0,0.51777945]
[1755122710750,0.00503,122710.0,122700.0,0.51777945]
[1755122710939,0.00624,122710.0,122700.0,0.51777945]
[1755122711405,0.00724,122710.0,122700.0,0.51777945]
[1755122711642,0.00724,122710.0,122700.0,0.81469945]
[1755122712301,0.00724,122710.0,122700.0,0.50273815]
[1755122712560,0.00724,122710.0,122700.0,0.67886842]
[1755122712729,0.00724,122710.0,122700.0,0.6868906]
[1755122713524,0.00724,122710.0,122700.0,0.8178106]
[1755122714519,0.00724,122710.0,122700.0,0.7162506]
[1755122715010,0.002,122710.0,122700.0,0.7182306]
[1755122715237,0.002,122710.0,122700.0,0.5228706]
[1755122715463,0.002,122710.0,122700.0,0.55330545]
[1755122715926,0.002,122710.0,122700.0,0.5258106]
[1755122716394,0.002,122710.0,122700.0,0.6360287]
[1755122716609,0.002,122710.0,122700.0,0.60853385]
[1755122718076,0.00677,122710.0,122700.0,0.6360287]
[1755122718848,0.00677,122710.0,122700.0,0.60853385]
[1755122719219,0.00477,122710.0,122700.0,0.60853385]
[1755122720695,0.00477,122710.0,122700.0,0.62773385]
[1755122720900,0.00477,122710.0,122700.0,0.62479385]
[1755122721581,0.00477,122710.0,122700.0,0.92167385]
[1755122724436,0.00477,122710.0,122700.0,0.92461385]
[1755122725804,0.00477,122710.0,122700.0,0.82305385]
[1755122726008,0.00477,122710.0,122700.0,0.44110543]
[1755122726219,0.00477,122710.0,122700.0,0.82011385]
[1755122728695,0.00477,122710.0,122700.0,0.5420706]
[1755122728900,0.00989,122710.0,122700.0,0.5420706]
[1755122729315,0.00956566,122710.0,122700.0,0.5420706]
[1755122730605,0.00444566,122710.0,122700.0,0.5420706]
[1755122731386,0.00444566,122710.0,122700.0,0.6436306]
[1755122731603,0.00444566,122710.0,122700.0,0.8389506]
[1755122732656,0.00652566,122710.0,122700.0,0.7080306]
[1755122732888,0.00956566,122710.0,122700.0,0.8362506]
[1755122733097,0.00956566,122710.0,122700.0,0.45430218]
[1755122733253,0.00956566,122710.0,122700.0,0.8361306]
[1755122735495,0.00956566,122710.0,122700.0,0.7345706]
[1755122735698,0.00956566,122710.0,122700.0,0.35262218]
[1755122735902,0.00956566,122710.0,122700.0,0.3446]
[1755122737113,0.00956566,122710.0,122700.0,0.14928]